Cogmind - Beta 9.2 @@@ ROGUE MODE // 2019.12.04 @ 23:38:19 Player: spruce (@macklemurr) Result: Destroyed by 8R-AWN with 8R-AWN's Boregun Performance ------------- Evolutions (0) 0 Regions Visited (3) 600 Robots Destroyed (20) 100 Value Destroyed (298) 298 Prototype IDs (23) 460 Alien Tech Used (0) 0 Bonus (300) 300 TOTAL SCORE: 1758 Bonus ------- Aligned with FarCom 300 Cogmind --------- Core Integrity 0/250 Matter 239/300 Energy 200/200 System Corruption 0% Temperature Cool (0) Movement Treading (160) Location -10/Exiles Parts ------- > --- POWER (1) -------- Cold Fusion Reactor > --- PROPULSION (2) --- Light Treads Light Treads > --- UTILITY (2) ------ Small Storage Unit > --- WEAPON (2) ------- AWS/Gauss > --- INVENTORY (6) ---- (None) Peak State ------------ > --- POWER ------------ Cold Fusion Reactor > --- PROPULSION ------- Light Treads Light Treads > --- UTILITY ---------- Small Storage Unit > --- WEAPON ----------- AWS/Gauss > --- INVENTORY -------- (None) [Rating: 25] Favorites ----------- Power Ion Engine Engine Ion Engine Reactor Cold Fusion Reactor Propulsion Compact Wheel Treads Light Treads Wheel Compact Wheel Hover Unit Hover Unit Utility Small Storage Unit Storage Small Storage Unit Hackware Hacking Suite Weapon Medium Laser Energy Gun Medium Laser Energy Cannon Guided Plasma Cannon Ballistic Gun Light Assault Rifle Launcher Grenade Launcher Special Weapon Field Lobotomy Kit Build | -11 -10 -10 -10 ------- Run | Scr Mat Min Exi Slots Evolved . | . . . . Power . | . . . . Propulsion . | . . . . Utility . | . . . . Weapon . | . . . . Parts Attached 23 | 5 7 . 11 Power 4 | 1 1 . 2 Engine 3 | 1 1 . 1 Core . | . . . . Reactor 1 | . . . 1 Propulsion 7 | 2 1 . 4 Treads 2 | . . . 2 Leg . | . . . . Wheel 3 | 2 1 . . Hover 2 | . . . 2 Flight . | . . . . Utility 2 | 1 1 . . Device . | . . . . Storage 1 | 1 . . . Processor . | . . . . Hackware 1 | . 1 . . Protection . | . . . . Artifact . | . . . . Weapon 10 | 1 4 . 5 Energy Gun 4 | 1 3 . . Energy Cannon 2 | . . . 2 Ballistic Gun 2 | . . . 2 Ballistic Cannon . | . . . . Launcher 1 | . 1 . . Special Weapon 1 | . . . 1 Impact Weapon . | . . . . Slashing Weapon . | . . . . Piercing Weapon . | . . . . Special Melee Weapon . | . . . . Unidentified Prototypes 1 | . . . 1 Parts Lost 6 | . 4 . 2 Power . | . . . . Propulsion 3 | . 1 . 2 Utility 1 | . 1 . . Weapon 2 | . 2 . . Highest Loss Streak 2 | . 2 . 2 Average Slot Usage (%) 82 | . 84 85 77 Engine 13 | . 14 14 12 Wheel 19 | . 25 28 6 Hover 5 | . . . 18 Storage 14 | . 14 14 14 Hackware 2 | . 6 . . Energy Gun 11 | . 16 14 3 Ballistic Gun 2 | . . . 7 Launcher 7 | . 7 14 3 Special Weapon 1 | . . . 4 Naked Turns . | . . . . Heaviest Build 27 | 9 14 14 27 Greatest Support 40 | 32 32 26 40 Greatest Overweight (x) 2 | . . . 2 Average Overweight (x) . | . . . . Largest Inventory Capacity 6 | 6 6 6 6 Average Capacity 5 | 4 6 6 6 Most Carried 6 | 6 6 6 6 Average Carried 5 | 2 5 5 4 Final Capacity 6 | 6 6 6 6 Final Carried 6 | 6 5 6 . Class Distribution -------------------- 97% | Mutant Dominant Class ---------------- Mutant | -10/Materials Mutant | -10/Mines Mutant | -10/Exiles Resources | -11 -10 -10 -10 ----------- Run | Scr Mat Min Exi Matter Collected 379 | 190 150 . 39 Remotely . | . . . . Salvage Created 460 | 74 344 . 42 Parts 30 | 2 28 . . Haulers Intercepted . | . . . . Recyclers Shooed 2 | . 2 . . Parts Field Recycled . | . . . . Retrieved Matter . | . . . . Parts Self-Destructed . | . . . . Prevented . | . . . . Kills | -11 -10 -10 -10 ------- Run | Scr Mat Min Exi Combat Hostiles Destroyed 14 | . 11 . 3 Guns 7 | . 7 . . Cannons 3 | . . . 3 AOE 4 | . 4 . . Classes Destroyed 8 | 1 6 . 1 Worker 2 | . 2 . . Builder 1 | . 1 . . Recycler 1 | 1 . . . Operator 1 | . 1 . . Watcher 1 | . 1 . . Swarmer 6 | . 6 . . Grunt 5 | . 5 . . Assembled 3 | . . . 3 Best Kill Streak 6 | 1 6 . 3 Combat Bots Only 3 | . 3 . 3 Max Kills in Single Turn 3 | 1 3 . 1 Gunslinging . | . . . . Exploded 3 | . 3 . . Melee . | . . . . Uniques/NPCs Destroyed 1 | . . . 1 EX-BIN (-10/Exiles) Combat | -11 -10 -10 -10 -------- Run | Scr Mat Min Exi Damage Taken 876 | . 454 . 422 Core 270 | . 161 . 109 Absorbed by Shields . | . . . . Core Remaining (%) 100 | 100 . . . Volleys Fired 75 | 5 57 . 13 Largest 2 | 1 2 . 1 Hottest 120 | 50 100 . 120 Shots Fired 101 | 5 64 . 32 Gun 84 | 5 60 . 19 Cannon 8 | . . . 8 Launcher 4 | . 4 . . Special 5 | . . . 5 Kinetic 19 | . . . 19 Thermal 52 | 5 39 . 8 Explosive 4 | . 4 . . Electromagnetic 21 | . 21 . . Robot Hit Streak 13 | 3 6 . 13 Robot Miss Streak 4 | 1 2 . 4 Penetration Max . | . . . . Secondary Targets . | . . . . Autonomous 19 | . . . 19 Shots Hit Robots 68 | 4 44 . 20 Core Hits 32 | 2 25 . 5 Critical Hits . | . . . . Critical Kills . | . . . . Critical Parts Destroyed . | . . . . Melee Attacks . | . . . . Impact . | . . . . Slashing . | . . . . Piercing . | . . . . Sneak Attacks . | . . . . Combat Hostiles . | . . . . Follow-up Attacks . | . . . . Damage Inflicted 1836 | 50 1194 . 592 Guns 1040 | 50 552 . 438 Cannons 154 | . . . 154 Explosions 642 | . 642 . . Melee . | . . . . Ramming . | . . . . Kinetic 438 | . . . 438 Thermal 831 | 50 627 . 154 Explosive 367 | . 367 . . Electromagnetic 200 | . 200 . . Impact . | . . . . Slashing . | . . . . Piercing . | . . . . Highest Corruption . | . . . . Average Corruption . | . . . . Corruption Purged . | . . . . Overload Shots . | . . . . Overflow Damage 31 | . 31 . . Projectiles . | . . . . Explosions 31 | . 31 . . Melee . | . . . . Knockbacks . | . . . . Impact . | . . . . Kinetic . | . . . . Secondary . | . . . . Self-Inflicted Damage 49 | . 49 . . Shots 2 | . 2 . . Rammed . | . . . . Targets Rammed . | . . . . Kicked . | . . . . Crushed . | . . . . Highest Temperature 431 | 50 304 . 431 Average Temperature 128 | 26 105 . 212 Received Heat Transfer 117 | . 117 . . Effects 2 | . 1 . 1 Energy Bleed 2 | . 1 . 1 Siege Activations . | . . . . Robots Corrupted . | . . . . Combat Hostiles . | . . . . Parts Fried 1 | . 1 . . Impact Corruptions . | . . . . Robots Melted . | . . . . Combat Hostiles . | . . . . Parts Melted . | . . . . Heat Transferred 2134 | 148 1586 . 400 Parts Sabotaged . | . . . . Parts Stolen . | . . . . Parts Stripped . | . . . . Power Chain Reactions 4 | . 4 . . Missiles Intercepted . | . . . . Alert | -11 -10 -10 -10 ------- Run | Scr Mat Min Exi Peak Influence 320 | 5 320 124 . Average Influence 138 | 2 178 124 . Maximum Alert Level 1 | . 1 . . Low Security (%) 71 | 100 50 100 . Level 1 28 | . 49 . . Level 2 . | . . . . Level 3 . | . . . . Level 4 . | . . . . Level 5 . | . . . . High Security . | . . . . Max Security . | . . . . Squads Dispatched 2 | . 2 . . Investigation . | . . . . Extermination . | . . . . Reinforcement 2 | . 2 . . Assault . | . . . . Garrison . | . . . . Intercept . | . . . . Construction Impeded . | . . . . Haulers Reinforced . | . . . . Stealth | -11 -10 -10 -10 --------- Run | Scr Mat Min Exi Distress Signals 1 | . 1 . . Communications Jammed . | . . . . Distress Signals . | . . . . Times Spotted 23 | . 15 . 8 Peak Tracking Total 9 | . 3 . 9 Tactical Retreats . | . . . . Traps | -11 -10 -10 -10 ------- Run | Scr Mat Min Exi Traps Triggered . | . . . . Indirectly . | . . . . Trap Hack Attempts . | . . . . Triggered . | . . . . Disarmed . | . . . . Reprogrammed . | . . . . Reused . | . . . . Traps Extracted . | . . . . Installed . | . . . . Triggered . | . . . . Machines | -11 -10 -10 -10 ---------- Run | Scr Mat Min Exi Machines Disabled 4 | . 1 . 3 Max in Single Turn 1 | . 1 . 1 Machines Sabotaged . | . . . . Garrisons Compromised . | . . . . Overloaded Fab Kills . | . . . . Fab Network Shutdowns . | . . . . Hacking | -11 -10 -10 -10 --------- Run | Scr Mat Min Exi Machines Accessed 2 | . 1 . 1 Terminals 1 | . 1 . . Fabricators . | . . . . Repair Stations . | . . . . Recycling Units . | . . . . Scanalyzers . | . . . . Garrison Access . | . . . . Total Hacks 3 | . 2 . 1 Successful 2 | . 1 . 1 Failed 1 | . 1 . . Catastrophic . | . . . . Database Lockouts . | . . . . Manual 2 | . 1 . 1 Terminals 2 | . 2 . . Fabricators . | . . . . Repair Stations . | . . . . Recycling Units . | . . . . Scanalyzers . | . . . . Garrison Access . | . . . . Terminal Hacks 2 | . 1 . 1 Investigation Status 1 | . 1 . . EX-Prototype ID Bank 1 | . . . 1 Fabricator Hacks . | . . . . Repair Station Hacks . | . . . . Recycling Unit Hacks . | . . . . Scanalyzer . | . . . . Garrison Access Hacks . | . . . . Unauthorized Hacks . | . . . . Terminals . | . . . . Fabricators . | . . . . Repair Stations . | . . . . Recycling Units . | . . . . Scanalyzers . | . . . . Garrison Access . | . . . . Data Cores Recovered . | . . . . Used . | . . . . Hacking Detections 1 | . 1 . . Full Trace Events . | . . . . Feedback Events . | . . . . Feedback Blocked . | . . . . Robot Schematics Acquired . | . . . . Robots Built . | . . . . Matter . | . . . . Time . | . . . . Total Robot Build Rating . | . . . . Part Schematics Acquired . | . . . . Parts Built . | . . . . Matter . | . . . . Time . | . . . . Total Part Build Rating . | . . . . Parts Repaired . | . . . . Time . | . . . . Parts Recycled . | . . . . Recycled Matter . | . . . . Retrieved Matter . | . . . . Retrieved Components . | . . . . Parts Scanalyzed . | . . . . Part Schematics Acquired . | . . . . Parts Damaged . | . . . . Bothacking | -11 -10 -10 -10 ------------ Run | Scr Mat Min Exi Used RIF Installer . | . . . . Robots Hacked . | . . . . Non-combat . | . . . . Combat . | . . . . Robot Hacks Applied . | . . . . Relay Couplers Released . | . . . . Robots Rewired . | . . . . Allies Hacked . | . . . . Hacks Repelled . | . . . . Allies | -11 -10 -10 -10 -------- Run | Scr Mat Min Exi Total Allies 5 | . . 3 2 Largest Group 4 | . . 3 4 Highest-Rated Group 50 | . . 40 50 Highest-Rated Ally 16 | . . 16 16 Total Orders . | . . . . Ally Attacks 25 | . . . 25 Total Damage 256 | . . . 256 Kills 4 | . . . 4 Allies Corrupted . | . . . . Allies Melted . | . . . . Field Lobotomies 2 | . . . 2 Intel | -11 -10 -10 -10 ------- Run | Scr Mat Min Exi Robot Analysis Total . | . . . . Derelict Logs Recovered . | . . . . Drone Launches . | . . . . Drone Recoveries . | . . . . Exploration | -11 -10 -10 -10 ------------- Run | Scr Mat Min Exi Turns Passed 880 | 86 355 181 258 Spaces Moved 681 | 69 203 174 235 Core 26 | 26 . . . Treads 11 | . . . 11 Legs . | . . . . Wheels 492 | 43 203 174 72 Hover 152 | . . . 152 Flight . | . . . . Fastest Speed 50 | 50 90 90 56 Average Speed 89 | 81 99 90 84 Slowest Speed 176 | 100 100 90 176 Overloaded Moves . | . . . . Propulsion Burnouts . | . . . . Robots Hopped . | . . . . Cave-ins Triggered . | . . . . Exploration Rate (%) 33 | 4 49 40 42 Regions Visited 3 Branch Regions 2 Pre-discovered Areas . | . . . . Known Exits Taken . | . . . . Unknown Exits Taken 3 | 1 1 1 . Scrap Searched 2 | . . 2 . Spaces Dug . | . . . . Terrain Destroyed 26 | . 25 . 1 Melee . | . . . . Projectile 1 | . . . 1 AOE 25 | . 25 . . Actions | -11 -10 -10 -10 --------- Run | Scr Mat Min Exi Total 868 | 95 291 198 284 Wait 50 | . 19 24 7 Move 678 | 68 202 173 235 Hop . | . . . . Pick Up 23 | 13 4 1 5 Fast Attach 5 | 2 2 . 1 Attach 16 | 3 3 . 10 Detach 3 | . . . 3 Swap 2 | . 2 . . Drop 16 | 4 2 . 10 Fire 75 | 5 57 . 13 Melee . | . . . . Ram . | . . . . Kick . | . . . . Crush . | . . . . Escape Stasis . | . . . . Rewire . | . . . . Trap . | . . . . Miscellaneous . | . . . . Route ------- -11/Scrapyard -10/Materials (discovered 2 exits: [*Mat] / [*Min]) -10/Mines (discovered 2 exits: [*Mat] / *Exi) -10/Exiles History --------- Turn | Location | Event 5 | -11/Scrapyard | Discovered new exit (range 16) 87 | -11/Scrapyard | Entered Materials 232 | -10/Materials | Discovered new exit (range 16) 316 | -10/Materials | Build established: Mutant 316 | -10/Materials | Core integrity fell below 50% 385 | -10/Materials | Discovered new exit (range 5) 442 | -10/Materials | Entered Mines 463 | -10/Mines | Discovered new exit (range 5) 540 | -10/Mines | Assisted by bots powering up and referring to "LRC-V3" 603 | -10/Mines | Deemed a non-threat by the Exiles lab entrance 603 | -10/Mines | Discovered new exit (range 5) 623 | -10/Mines | Entered Exiles 623 | -10/Exiles | Accompanied by 3 allies 646 | -10/Exiles | Met 8R-AWN 660 | -10/Exiles | Met EX-HEX 688 | -10/Exiles | Met EX-BIN 701 | -10/Exiles | Aligned with FarCom system 702 | -10/Exiles | Given EX-Vault access code 739 | -10/Exiles | Opened EX-Vault 750 | -10/Exiles | Found Gui. Plasma Cannon 757 | -10/Exiles | Found Field Lobotomy Kit 762 | -10/Exiles | Found AWS/Gauss 788 | -10/Exiles | Warned to stay clear of 0b10 Research branches 808 | -10/Exiles | Attacked by the Exiles 810 | -10/Exiles | Allies destroyed EX-BIN 819 | -10/Exiles | Assimilated as-94766 with FLK Orb 824 | -10/Exiles | Assimilated as-89206 with FLK Orb 859 | -10/Exiles | Core integrity fell below 20% 881 | -10/Exiles | Destroyed by 8R-AWN with 8R-AWN's Boregun Last Messages --------------- Penetrated by HV Slug. HV Slug penetrates Earth. Slug penetrates 8R-AWN. Penetrated by HV Slug. HV Slug penetrates Machine. Penetrated by HV Slug. HV Slug penetrates Wall. Machine disabled. Slug penetrates 8R-AWN. Penetrated by HV Slug. HV Slug penetrates Wall. Penetrated by HV Slug. HV Slug penetrates Wall. Slug penetrates 8R-AWN. Penetrated by HV Slug. HV Slug penetrates Wall. Slug penetrates 8R-AWN. Penetrated by HV Slug. HV Slug penetrates Wall. Penetrated by HV Slug. Map ----- +----------------------------------------------------+ | ??????????????????????# #????????????????????? | | ??????????????????????# #???#?##?????????????? | | ??????????????????????# #??"""""?????????????? | | ??????????????????????# ## """#????????????? | | ??????????????????????# X""#????????????? | | ??????????????????????# ## """#????????????? | | ????????????????####??# #??"""""?????????????? | | ???????????????""""""?# #???#?##?????????????? | | ???????????????"""" ## #????????????????????? | | ??????????????#""X" #????????????????????? | | ??????????????#" #????????????????????? | | ??????????????#" ## #????????????????????? | | ??????????????#""""""?# #?#########??????????? | | ??????????????##"###??# #?#"""""""#??????????? | | ??????????????? ??????# #?#"""""""#??????????? | | ??????????????????????# ;?#"""""""#??????????? | | ?????????????????????#; ###"" """"#??????????? | | ?????????????????????#" """"#??????????? | | ?????????????????????#" """#??????????? | | ?????????????????????#" = """#??????????? | | ?????????????????????#" """#??????????? | | ?????????????????????#" """#??????????? | | ?????????????????????# """##?????????? | | ?????????????????????## !! """""?????????? | | ??????????????????????# !!!!! """##?????????? | | ??????????????????????# @ [! "X" """"??????????? | | ?????????????????#????# !!!""" #??????????? | | ???????????????# # #?## !%"""""""""#??????????? | | ????????????????# #; =###########??????????? | | ??????????????????# ;; == #????????????????????? | | ??????????????????### * %%;????????????????????? | | ????????????????"""""" ] %%##???????????????????? | | ???????????????""" " "" [g*"#???#########??????? | | ?????????????" """ " #####"""""""""##???? | | ???????????? " " " """ """"#???? | | ??????????? "" " #??? | | ??????????? " """#??? | | ??????????? " "#??? | | ??????????? " "##?? | | ??????????? ""### | | ???????????? """ " """# | | ???????????? ######""" "# | | ????????????? ""#?????#####""" # | | ????????????? """???????????##""" | | ?????????????????????????????#"""" | | ?????????????????????????????#"" | | ????????????????????????????#"""" | | ???????????????????????????"" | | ?????????????????????????"" | | ???????????????????????? | +----------------------------------------------------+ Best States ------------- Heat Dissipation 25 Energy Generation 17 Energy Capacity 250 Matter Stores 300 Matter Capacity 300 Sight Range 16 Terrain Scan Density 10 Evasion (%) 53 Recoil Reduction 2 Offensive Hacking 10 Item Schematics ----------------- None Robot Schematics ------------------ None Fabricated ------------ Nothing Alien Tech Used ----------------- None Achievements -------------- None Challenges ------------ None Game ------ Seed AccelerationSmallProjector Manual? 0 Play Time 00:10:12 Cumulative 60.5 hours Start 2019.12.04 @ 23:28:26 End 2019.12.04 @ 23:38:19 Sessions 1 Manual Loads 0 Difficulty Rogue Special Mode None Game No. 172 Rogue 172 Adventurer 0 Explorer 0 Win Type - Total 1 Types 1/0/0/0/0/0/0 Lore% 65 Gallery% 62 Achievement% 51 Wizard Run 0 Options --------- ASCII 0 Keyboard 0 Movement Numpad Keybinds 0 Fullscreen 1 Font 24/Smallcaps Map View 76x50 Tactical HUD 0 Map Filters NONE Filters NONE Steam 1 RUN: b0f6b36d-598c-4a27-ae84-a5b6ca89517f